[Event "Live Chess"]
[Site "Chess.com"]
[Date "2024.06.02"]
[Round "-"]
[White "agamilewska"]
[Black "PavelChernomordik"]
[Result "0-1"]
[WhiteElo "1742"]
[BlackElo "2503"]
[TimeControl "300"]
[EndTime "7:08:35 PDT"]
[Termination "PavelChernomordik won by resignation"]

1. d4 {[%clk 0:04:56.7]} 1... g6 {[%clk 0:04:58.9]} 2. Nf3 {[%clk 0:04:56.1]}
2... Bg7 {[%clk 0:04:57.8]} 3. c4 {[%clk 0:04:53.6]} 3... d6 {[%clk 0:04:56.8]}
4. Nc3 {[%clk 0:04:53]} 4... Nc6 {[%clk 0:04:55.9]} 5. Bf4 {[%clk 0:04:51.8]}
5... h6 {[%clk 0:04:43.6]} 6. e3 {[%clk 0:04:50.8]} 6... g5 {[%clk 0:04:39.5]}
7. Bg3 {[%clk 0:04:49.6]} 7... Nf6 {[%clk 0:04:30.8]} 8. Bd3 {[%clk 0:04:47.3]}
8... Nh5 {[%clk 0:04:22.4]} 9. O-O {[%clk 0:04:45.3]} 9... Nxg3 {[%clk 0:04:20]}
10. hxg3 {[%clk 0:04:44.4]} 10... Bg4 {[%clk 0:04:18.2]} 11. Be2 {[%clk
0:04:42.4]} 11... Qd7 {[%clk 0:04:13.5]} 12. d5 {[%clk 0:04:40.3]} 12... Bxf3
{[%clk 0:04:10.4]} 13. dxc6 {[%clk 0:04:31.4]} 13... Bxc6 {[%clk 0:04:08.2]} 14.
Bg4 {[%clk 0:04:26.3]} 14... e6 {[%clk 0:04:05.6]} 15. Nd5 {[%clk 0:04:17.9]}
15... f5 {[%clk 0:04:01.5]} 16. Bh5+ {[%clk 0:04:15.4]} 16... Kf8 {[%clk
0:03:56.9]} 17. Nc3 {[%clk 0:04:07.3]} 17... g4 {[%clk 0:03:54]} 18. Rc1 {[%clk
0:03:43.4]} 18... Bf6 {[%clk 0:03:44.1]} 19. Ne2 {[%clk 0:03:39.2]} 19... Kg7
{[%clk 0:03:39.3]} 20. Nf4 {[%clk 0:03:36.6]} 20... Bxb2 {[%clk 0:03:34.1]} 21.
Rc2 {[%clk 0:03:32.7]} 21... Bf6 {[%clk 0:03:26.9]} 22. Rd2 {[%clk 0:02:59.2]}
22... Rhd8 {[%clk 0:03:08.6]} 23. c5 {[%clk 0:02:55.8]} 23... d5 {[%clk
0:03:01.2]} 24. f3 {[%clk 0:02:34.3]} 24... gxf3 {[%clk 0:02:59]} 25. gxf3
{[%clk 0:02:30.2]} 25... Qe7 {[%clk 0:02:50.1]} 26. Ng6 {[%clk 0:02:24.4]} 26...
Qxc5 {[%clk 0:02:47.6]} 27. Kf2 {[%clk 0:02:02.9]} 27... d4 {[%clk 0:02:42.1]}
28. exd4 {[%clk 0:01:47.5]} 28... Rxd4 {[%clk 0:02:38.7]} 29. Rxd4 {[%clk
0:01:42]} 29... Qxd4+ {[%clk 0:02:34.3]} 30. Qxd4 {[%clk 0:01:41.2]} 30... Bxd4+
{[%clk 0:02:33.1]} 31. Kg2 {[%clk 0:01:40.7]} 31... Kf6 {[%clk 0:02:29.2]} 32.
Nf4 {[%clk 0:01:36]} 32... e5 {[%clk 0:02:23.3]} 33. Ne2 {[%clk 0:01:34]} 33...
Bb6 {[%clk 0:02:06.6]} 34. Nc3 {[%clk 0:01:22.9]} 34... Rd8 {[%clk 0:02:03.8]}
35. g4 {[%clk 0:01:20.4]} 35... Rd2+ {[%clk 0:01:58]} 36. Kg3 {[%clk 0:01:13.5]}
36... Rd3 {[%clk 0:01:49.9]} 37. gxf5 {[%clk 0:01:05.5]} 37... Rxc3 {[%clk
0:01:45.6]} 0-1

[Event "Live Chess"]
[Site "Chess.com"]
[Date "2024.06.02"]
[Round "-"]
[White "silunn"]
[Black "NottheBishopSacrifice"]
[Result "0-1"]
[WhiteElo "2116"]
[BlackElo "2337"]
[TimeControl "300"]
[EndTime "7:09:25 PDT"]
[Termination "NottheBishopSacrifice won on time"]

1. e4 {[%clk 0:04:58.7]} 1... c6 {[%clk 0:04:58.5]} 2. d4 {[%clk 0:04:57.7]}
2... d5 {[%clk 0:04:57.4]} 3. exd5 {[%clk 0:04:57.6]} 3... cxd5 {[%clk
0:04:55.6]} 4. c4 {[%clk 0:04:57.5]} 4... Nf6 {[%clk 0:04:54]} 5. Nc3 {[%clk
0:04:56.8]} 5... Nc6 {[%clk 0:04:52.9]} 6. Nf3 {[%clk 0:04:56.4]} 6... a6 {[%clk
0:04:50.8]} 7. Be3 {[%clk 0:04:55.2]} 7... Be6 {[%clk 0:04:49]} 8. c5 {[%clk
0:04:53.1]} 8... g6 {[%clk 0:04:47.2]} 9. Ng5 {[%clk 0:04:42.4]} 9... Bf5 {[%clk
0:04:39.2]} 10. Qb3 {[%clk 0:04:40.9]} 10... Qd7 {[%clk 0:04:35.7]} 11. Na4
{[%clk 0:04:39.2]} 11... Rd8 {[%clk 0:04:28.5]} 12. Nb6 {[%clk 0:04:34.2]} 12...
Qc7 {[%clk 0:04:26.8]} 13. Be2 {[%clk 0:03:59.2]} 13... Bg7 {[%clk 0:04:21.5]}
14. O-O {[%clk 0:03:54.4]} 14... O-O {[%clk 0:04:19.2]} 15. h3 {[%clk
0:03:44.5]} 15... h6 {[%clk 0:04:09.6]} 16. Nf3 {[%clk 0:03:42.8]} 16... Ne4
{[%clk 0:04:08]} 17. Nxd5 {[%clk 0:03:37.1]} 17... Qd7 {[%clk 0:04:00.4]} 18.
Nb6 {[%clk 0:03:33.7]} 18... Qc7 {[%clk 0:03:58.7]} 19. Rac1 {[%clk 0:03:22]}
19... Nxd4 {[%clk 0:03:49.3]} 20. Nxd4 {[%clk 0:03:19.6]} 20... Bxd4 {[%clk
0:03:48.8]} 21. Bxh6 {[%clk 0:03:16.8]} 21... Bg7 {[%clk 0:03:45.5]} 22. Bxg7
{[%clk 0:03:11.3]} 22... Kxg7 {[%clk 0:03:45.4]} 23. Nd5 {[%clk 0:03:06.7]}
23... Qe5 {[%clk 0:03:34]} 24. Ne3 {[%clk 0:02:52.8]} 24... Nd2 {[%clk 0:03:21]}
25. Qxb7 {[%clk 0:02:40.6]} 25... Nxf1 {[%clk 0:03:16.3]} 26. Bxf1 {[%clk
0:02:38.8]} 26... Rb8 {[%clk 0:03:12.1]} 27. Qxa6 {[%clk 0:02:34]} 27... Qxb2
{[%clk 0:03:10.5]} 28. Rc4 {[%clk 0:01:52]} 28... Bd3 {[%clk 0:03:05.5]} 29.
Bxd3 {[%clk 0:01:50.1]} 29... Ra8 {[%clk 0:02:59.4]} 30. Qb6 {[%clk 0:01:40.1]}
30... Qa1+ {[%clk 0:02:57.4]} 31. Kh2 {[%clk 0:01:38.5]} 31... Qe5+ {[%clk
0:02:56.2]} 32. g3 {[%clk 0:01:35.1]} 32... Rxa2 {[%clk 0:02:53.9]} 33. Rc2
{[%clk 0:01:20.3]} 33... Ra1 {[%clk 0:02:45.1]} 34. Qb2 {[%clk 0:01:17.1]} 34...
Qxb2 {[%clk 0:02:37.7]} 35. Rxb2 {[%clk 0:01:17]} 35... Rc1 {[%clk 0:02:37]} 36.
Bc4 {[%clk 0:01:05.9]} 36... Rc8 {[%clk 0:02:33.8]} 37. Rb5 {[%clk 0:01:02.5]}
37... e6 {[%clk 0:02:30.4]} 38. Kg2 {[%clk 0:00:53]} 38... Kf8 {[%clk
0:02:29.7]} 39. Kf3 {[%clk 0:00:49.6]} 39... Ke7 {[%clk 0:02:28.4]} 40. Rb7+
{[%clk 0:00:48.5]} 40... Kf8 {[%clk 0:02:26.7]} 41. Rb5 {[%clk 0:00:44.8]} 41...
Ke7 {[%clk 0:02:25.7]} 42. Ng4 {[%clk 0:00:41.9]} 42... Rxc4 {[%clk 0:02:22.9]}
43. Rb7+ {[%clk 0:00:40.1]} 43... Kf8 {[%clk 0:02:18.3]} 44. Ne5 {[%clk
0:00:38.8]} 44... Rc3+ {[%clk 0:02:16.2]} 45. Kg4 {[%clk 0:00:37.2]} 45... R3xc5
{[%clk 0:02:10.7]} 46. Nxf7 {[%clk 0:00:32.7]} 46... R8c7 {[%clk 0:02:07]} 47.
Rxc7 {[%clk 0:00:31.3]} 47... Rxc7 {[%clk 0:02:06.9]} 48. Ng5 {[%clk 0:00:31]}
48... Rc4+ {[%clk 0:02:04.5]} 49. f4 {[%clk 0:00:30.3]} 49... Ke7 {[%clk
0:02:03.6]} 50. Nf3 {[%clk 0:00:29.6]} 50... Kf6 {[%clk 0:02:01]} 51. Ne5 {[%clk
0:00:28.8]} 51... Rc3 {[%clk 0:02:00.1]} 52. Kh4 {[%clk 0:00:26.9]} 52... g5+
{[%clk 0:01:56.5]} 53. Kg4 {[%clk 0:00:26.5]} 53... gxf4 {[%clk 0:01:55.5]} 54.
gxf4 {[%clk 0:00:26.4]} 54... Ra3 {[%clk 0:01:53.1]} 55. h4 {[%clk 0:00:26]}
55... Ra1 {[%clk 0:01:51.5]} 56. Kf3 {[%clk 0:00:20.4]} 56... Rh1 {[%clk
0:01:48.8]} 57. Kg3 {[%clk 0:00:19.3]} 57... Rg1+ {[%clk 0:01:48]} 58. Kf3
{[%clk 0:00:18.5]} 58... Rf1+ {[%clk 0:01:46.6]} 59. Kg3 {[%clk 0:00:17.1]}
59... Rg1+ {[%clk 0:01:45]} 60. Kf3 {[%clk 0:00:16.3]} 60... Rb1 {[%clk
0:01:44.6]} 61. Ng4+ {[%clk 0:00:15.1]} 61... Kf5 {[%clk 0:01:42.4]} 62. Ne3+
{[%clk 0:00:14.7]} 62... Kf6 {[%clk 0:01:41.2]} 63. Kg4 {[%clk 0:00:14]} 63...
Rg1+ {[%clk 0:01:37.5]} 64. Kf3 {[%clk 0:00:13.3]} 64... Rh1 {[%clk 0:01:36.1]}
65. Kg2 {[%clk 0:00:12.7]} 65... Rb1 {[%clk 0:01:34]} 66. Kg3 {[%clk 0:00:12.2]}
66... Rb3 {[%clk 0:01:31.3]} 67. Kf3 {[%clk 0:00:10.9]} 67... Ra3 {[%clk
0:01:28.1]} 68. Ke4 {[%clk 0:00:09.9]} 68... Ra4+ {[%clk 0:01:26.2]} 69. Kd3
{[%clk 0:00:08.7]} 69... Rxf4 {[%clk 0:01:23.9]} 70. Ke2 {[%clk 0:00:06.6]}
70... Rxh4 {[%clk 0:01:22.5]} 71. Kf2 {[%clk 0:00:06.5]} 71... Rf4+ {[%clk
0:01:21.1]} 72. Kg3 {[%clk 0:00:06]} 72... Re4 {[%clk 0:01:20.1]} 73. Ng4+
{[%clk 0:00:04.5]} 73... Ke7 {[%clk 0:01:18.1]} 74. Nf2 {[%clk 0:00:03.4]} 74...
Re3+ {[%clk 0:01:16.9]} 75. Kf4 {[%clk 0:00:02.7]} 75... Re2 {[%clk 0:01:15.5]}
76. Ng4 {[%clk 0:00:02]} 76... Kd6 {[%clk 0:01:13.9]} 77. Kf3 {[%clk 0:00:01.8]}
77... Ra2 {[%clk 0:01:12.3]} 78. Nf2 {[%clk 0:00:01.2]} 78... e5 {[%clk
0:01:10.6]} 79. Ne4+ {[%clk 0:00:00.6]} 79... Ke6 {[%clk 0:01:09.3]} 80. Nc3
{[%clk 0:00:00.5]} 80... Ra3 {[%clk 0:01:06.9]} 0-1

[Event "Live Chess"]
[Site "Chess.com"]
[Date "2024.06.02"]
[Round "-"]
[White "ProfPoisson"]
[Black "gobbles19"]
[Result "0-1"]
[WhiteElo "1319"]
[BlackElo "2200"]
[TimeControl "300"]
[EndTime "7:09:26 PDT"]
[Termination "gobbles19 won by resignation"]

1. e4 {[%clk 0:04:55]} 1... Nf6 {[%clk 0:04:58.7]} 2. Nc3 {[%clk 0:04:48.9]}
2... d6 {[%clk 0:04:57.7]} 3. f4 {[%clk 0:04:42.7]} 3... g6 {[%clk 0:04:57.1]}
4. Bc4 {[%clk 0:04:39.7]} 4... Bg7 {[%clk 0:04:56.4]} 5. Nf3 {[%clk 0:04:37]}
5... O-O {[%clk 0:04:55.7]} 6. d3 {[%clk 0:04:30.1]} 6... c5 {[%clk 0:04:54.6]}
7. O-O {[%clk 0:04:26.7]} 7... Nc6 {[%clk 0:04:54.3]} 8. Qe1 {[%clk 0:04:20.8]}
8... Nd4 {[%clk 0:04:51.5]} 9. Bb3 {[%clk 0:04:02.9]} 9... Nxf3+ {[%clk
0:04:36.9]} 10. Rxf3 {[%clk 0:03:59.7]} 10... a6 {[%clk 0:04:34.1]} 11. Nd5
{[%clk 0:03:52.9]} 11... b5 {[%clk 0:04:24.5]} 12. Nxf6+ {[%clk 0:03:51]} 12...
Bxf6 {[%clk 0:04:22.2]} 13. Bd5 {[%clk 0:03:48.7]} 13... Rb8 {[%clk 0:04:19.4]}
14. f5 {[%clk 0:03:46.9]} 14... e6 {[%clk 0:04:17]} 15. fxe6 {[%clk 0:03:39.7]}
15... fxe6 {[%clk 0:04:16.9]} 16. Bh6 {[%clk 0:03:10.9]} 16... Bd4+ {[%clk
0:04:12.1]} 17. Kh1 {[%clk 0:03:05.5]} 17... Rxf3 {[%clk 0:04:09.6]} 18. gxf3
{[%clk 0:03:00.6]} 18... exd5 {[%clk 0:04:08.6]} 19. Qg3 {[%clk 0:02:41.9]}
19... Bg7 {[%clk 0:03:59.9]} 20. Bf4 {[%clk 0:02:37.2]} 20... dxe4 {[%clk
0:03:52.2]} 21. Bxd6 {[%clk 0:02:35.5]} 21... Rb7 {[%clk 0:03:50.4]} 22. fxe4
{[%clk 0:02:30.3]} 22... Rf7 {[%clk 0:03:43.9]} 23. Bxc5 {[%clk 0:02:13.8]}
23... Bxb2 {[%clk 0:03:40.2]} 24. Rb1 {[%clk 0:01:58.3]} 24... Bd4 {[%clk
0:03:38.1]} 25. Bxd4 {[%clk 0:01:53.8]} 25... Qxd4 {[%clk 0:03:38]} 26. Rg1
{[%clk 0:01:47.9]} 26... Qf2 {[%clk 0:03:31.2]} 27. Qb8 {[%clk 0:01:39.2]} 27...
Qf3+ {[%clk 0:03:27.9]} 28. Rg2 {[%clk 0:01:36.6]} 28... Qd1+ {[%clk 0:03:24]}
29. Rg1 {[%clk 0:01:32.4]} 29... Qxc2 {[%clk 0:03:22.1]} 30. Qe5 {[%clk
0:01:23]} 30... Qc7 {[%clk 0:03:13]} 31. Qe8+ {[%clk 0:01:18]} 31... Rf8 {[%clk
0:03:11.5]} 32. Rxg6+ {[%clk 0:01:14.6]} 32... hxg6 {[%clk 0:03:09.6]} 33. Qxg6+
{[%clk 0:01:11.7]} 33... Qg7 {[%clk 0:03:09.2]} 34. Qxa6 {[%clk 0:01:07.7]}
34... Bxa6 {[%clk 0:03:07.6]} 0-1

[Event "Live Chess"]
[Site "Chess.com"]
[Date "2024.06.02"]
[Round "-"]
[White "matt1979"]
[Black "juniortay"]
[Result "0-1"]
[WhiteElo "1439"]
[BlackElo "2310"]
[TimeControl "300"]
[EndTime "7:09:31 PDT"]
[Termination "juniortay won by resignation"]

1. f4 {[%clk 0:04:58.9]} 1... e5 {[%clk 0:04:58.8]} 2. fxe5 {[%clk 0:04:57.5]}
2... d6 {[%clk 0:04:57.9]} 3. exd6 {[%clk 0:04:56.8]} 3... Bxd6 {[%clk
0:04:57.4]} 4. Nf3 {[%clk 0:04:55.5]} 4... Nf6 {[%clk 0:04:55.8]} 5. d4 {[%clk
0:04:52.5]} 5... Ng4 {[%clk 0:04:54.6]} 6. g3 {[%clk 0:04:48.2]} 6... h5 {[%clk
0:04:50.9]} 7. Qd3 {[%clk 0:04:40.2]} 7... f5 {[%clk 0:04:29.6]} 8. Bg2 {[%clk
0:04:30.9]} 8... h4 {[%clk 0:04:28]} 9. Nxh4 {[%clk 0:04:23.6]} 9... Rxh4 {[%clk
0:04:26.3]} 10. gxh4 {[%clk 0:04:19.6]} 10... Qxh4+ {[%clk 0:04:24.4]} 11. Kd2
{[%clk 0:04:16.1]} 11... Nc6 {[%clk 0:03:59.7]} 12. c3 {[%clk 0:04:08.4]} 12...
Bd7 {[%clk 0:03:41.2]} 13. h3 {[%clk 0:04:03.8]} 13... Nf6 {[%clk 0:03:27.3]}
14. Qe3+ {[%clk 0:03:58.4]} 14... Kf7 {[%clk 0:03:22.1]} 15. Rf1 {[%clk
0:03:49.7]} 15... Re8 {[%clk 0:03:16.5]} 16. Qd3 {[%clk 0:03:44.4]} 16... Qg5+
{[%clk 0:02:56.8]} 17. Kc2 {[%clk 0:03:31.6]} 17... Qxg2 {[%clk 0:02:55.5]} 18.
Qf3 {[%clk 0:03:12.3]} 18... Rxe2+ {[%clk 0:02:53.3]} 19. Kb3 {[%clk 0:03:09]}
19... Be6+ {[%clk 0:02:42.3]} 20. c4 {[%clk 0:03:04.5]} 20... Nxd4+ {[%clk
0:02:41]} 0-1

[Event "Live Chess"]
[Site "Chess.com"]
[Date "2024.06.02"]
[Round "-"]
[White "gmnorfolk"]
[Black "missedJariChance"]
[Result "1-0"]
[WhiteElo "2153"]
[BlackElo "1382"]
[TimeControl "300"]
[EndTime "7:09:37 PDT"]
[Termination "gmnorfolk won by resignation"]

1. c4 {[%clk 0:04:56.6]} 1... e6 {[%clk 0:04:56.9]} 2. Nf3 {[%clk 0:04:51]} 2...
d5 {[%clk 0:04:55.8]} 3. d4 {[%clk 0:04:49.2]} 3... Nf6 {[%clk 0:04:53.2]} 4.
Bg5 {[%clk 0:04:48.1]} 4... Be7 {[%clk 0:04:51.3]} 5. Nc3 {[%clk 0:04:46.2]}
5... O-O {[%clk 0:04:49.9]} 6. e3 {[%clk 0:04:45.8]} 6... c5 {[%clk 0:04:41.8]}
7. cxd5 {[%clk 0:04:43]} 7... Nxd5 {[%clk 0:04:40.3]} 8. Nxd5 {[%clk 0:04:37.1]}
8... Bxg5 {[%clk 0:04:37.5]} 9. Nxg5 {[%clk 0:04:36.1]} 9... Qxg5 {[%clk
0:04:35.8]} 10. Nc7 {[%clk 0:04:34.6]} 10... cxd4 {[%clk 0:04:17.9]} 11. Nxa8
{[%clk 0:04:32.6]} 11... Qa5+ {[%clk 0:04:15]} 12. Qd2 {[%clk 0:04:31.2]} 12...
Nc6 {[%clk 0:04:00.3]} 13. Qxa5 {[%clk 0:04:28.7]} 13... Nxa5 {[%clk 0:03:59.1]}
14. exd4 {[%clk 0:04:24.5]} 14... Bd7 {[%clk 0:03:50.7]} 15. Nc7 {[%clk
0:04:22.4]} 15... a6 {[%clk 0:03:43.1]} 16. d5 {[%clk 0:04:12.5]} 16... exd5
{[%clk 0:03:37.2]} 17. Nxd5 {[%clk 0:04:09.7]} 17... Re8+ {[%clk 0:03:32.3]} 18.
Ne3 {[%clk 0:04:08.4]} 18... Nc6 {[%clk 0:03:22.6]} 19. O-O-O {[%clk 0:04:05]}
19... Ne5 {[%clk 0:03:14.6]} 20. f4 {[%clk 0:03:58.8]} 20... Rc8+ {[%clk
0:03:12.8]} 21. Kb1 {[%clk 0:03:56.5]} 1-0

[Event "Live Chess"]
[Site "Chess.com"]
[Date "2024.06.02"]
[Round "-"]
[White "Anareza_Firouzja"]
[Black "Purple1szed"]
[Result "1-0"]
[WhiteElo "1891"]
[BlackElo "2002"]
[TimeControl "300"]
[EndTime "7:09:47 PDT"]
[Termination "Anareza_Firouzja won by resignation"]

1. e4 {[%clk 0:04:54.1]} 1... e5 {[%clk 0:04:58.6]} 2. Nf3 {[%clk 0:04:52]} 2...
Nc6 {[%clk 0:04:58.1]} 3. Bb5 {[%clk 0:04:49.7]} 3... g6 {[%clk 0:04:57.2]} 4.
c3 {[%clk 0:04:47.7]} 4... a6 {[%clk 0:04:54.8]} 5. Bxc6 {[%clk 0:04:45.8]} 5...
dxc6 {[%clk 0:04:54.7]} 6. d4 {[%clk 0:04:43.4]} 6... exd4 {[%clk 0:04:53.9]} 7.
cxd4 {[%clk 0:04:43.3]} 7... Bg4 {[%clk 0:04:53.4]} 8. Nc3 {[%clk 0:04:37.5]}
8... Bg7 {[%clk 0:04:50.7]} 9. Be3 {[%clk 0:04:36.8]} 9... Bxf3 {[%clk
0:04:44.8]} 10. gxf3 {[%clk 0:04:36.7]} 10... Qd7 {[%clk 0:04:43.1]} 11. Qd2
{[%clk 0:04:32.7]} 11... O-O-O {[%clk 0:04:39.4]} 12. O-O-O {[%clk 0:04:31.1]}
12... Nf6 {[%clk 0:04:38.3]} 13. Qd3 {[%clk 0:04:12.6]} 13... Rhe8 {[%clk
0:04:31.4]} 14. Na4 {[%clk 0:04:09.8]} 14... Qe6 {[%clk 0:04:22.4]} 15. Kb1
{[%clk 0:03:58.2]} 15... Nd7 {[%clk 0:04:17.9]} 16. Rc1 {[%clk 0:03:38.1]} 16...
Kb8 {[%clk 0:03:55.9]} 17. Rc3 {[%clk 0:03:19]} 17... b5 {[%clk 0:03:39.2]} 18.
Nc5 {[%clk 0:03:12.2]} 18... Nxc5 {[%clk 0:03:37.8]} 19. Rxc5 {[%clk 0:03:12.1]}
19... Kb7 {[%clk 0:03:30.2]} 20. Rhc1 {[%clk 0:03:09.7]} 20... Qf6 {[%clk
0:03:23.5]} 21. Rxc6 {[%clk 0:02:54]} 21... Qxc6 {[%clk 0:03:23.4]} 22. Rxc6
{[%clk 0:02:53.1]} 22... Kxc6 {[%clk 0:03:23.3]} 23. d5+ {[%clk 0:02:52.4]}
23... Kb7 {[%clk 0:03:21.4]} 24. Qc2 {[%clk 0:02:47.2]} 24... Rd6 {[%clk
0:03:11]} 25. Qc5 {[%clk 0:02:45.3]} 25... Red8 {[%clk 0:03:09]} 26. Bf4 {[%clk
0:02:36]} 26... R6d7 {[%clk 0:02:55.5]} 27. Qc6+ {[%clk 0:02:31.9]} 27... Kb8
{[%clk 0:02:54.2]} 1-0

[Event "Live Chess"]
[Site "Chess.com"]
[Date "2024.06.02"]
[Round "-"]
[White "McFim"]
[Black "DylanMeyer1"]
[Result "0-1"]
[WhiteElo "1781"]
[BlackElo "1727"]
[TimeControl "300"]
[EndTime "7:09:53 PDT"]
[Termination "DylanMeyer1 won on time"]

1. e4 {[%clk 0:04:57.6]} 1... d5 {[%clk 0:04:59.6]} 2. exd5 {[%clk 0:04:55.8]}
2... Qxd5 {[%clk 0:04:59.5]} 3. Nc3 {[%clk 0:04:55.3]} 3... Qd6 {[%clk
0:04:59.4]} 4. Bc4 {[%clk 0:04:53.1]} 4... Nf6 {[%clk 0:04:58.8]} 5. d4 {[%clk
0:04:51.8]} 5... a6 {[%clk 0:04:58.2]} 6. a3 {[%clk 0:04:50.3]} 6... e6 {[%clk
0:04:57.6]} 7. Nf3 {[%clk 0:04:48.5]} 7... Be7 {[%clk 0:04:57]} 8. h3 {[%clk
0:04:45.9]} 8... O-O {[%clk 0:04:56.5]} 9. O-O {[%clk 0:04:44.2]} 9... b5 {[%clk
0:04:56]} 10. Bb3 {[%clk 0:04:42.8]} 10... Bb7 {[%clk 0:04:55.6]} 11. Qd3 {[%clk
0:04:37.1]} 11... c5 {[%clk 0:04:54]} 12. dxc5 {[%clk 0:04:19.4]} 12... Qxc5
{[%clk 0:04:53.9]} 13. Be3 {[%clk 0:04:15.7]} 13... Qc6 {[%clk 0:04:51]} 14. Qe2
{[%clk 0:04:05.8]} 14... Nbd7 {[%clk 0:04:49.6]} 15. Rfd1 {[%clk 0:03:51.7]}
15... Rad8 {[%clk 0:04:47.4]} 16. Ne1 {[%clk 0:03:49.9]} 16... Nc5 {[%clk
0:04:42]} 17. Ba2 {[%clk 0:03:45.4]} 17... Rxd1 {[%clk 0:04:38.8]} 18. Rxd1
{[%clk 0:03:43.5]} 18... Rd8 {[%clk 0:04:38.7]} 19. Rxd8+ {[%clk 0:03:41.3]}
19... Bxd8 {[%clk 0:04:38.6]} 20. Qd2 {[%clk 0:03:27.8]} 20... Bb6 {[%clk
0:04:32.7]} 21. b4 {[%clk 0:03:19.8]} 21... Nce4 {[%clk 0:04:28.3]} 22. Nxe4
{[%clk 0:03:17.4]} 22... Nxe4 {[%clk 0:04:25.5]} 23. Qd3 {[%clk 0:03:08.8]}
23... h6 {[%clk 0:04:10.2]} 24. Bb3 {[%clk 0:02:44.7]} 24... Nf6 {[%clk
0:03:19.6]} 25. c4 {[%clk 0:02:33.2]} 25... bxc4 {[%clk 0:03:17.6]} 26. Bxc4
{[%clk 0:02:30.6]} 26... Bxe3 {[%clk 0:03:13.4]} 27. fxe3 {[%clk 0:02:23.4]}
27... Nd7 {[%clk 0:02:33.7]} 28. b5 {[%clk 0:01:34.7]} 28... Qc5 {[%clk
0:02:07.5]} 29. Qd4 {[%clk 0:01:18.3]} 29... Qxd4 {[%clk 0:01:52.9]} 30. exd4
{[%clk 0:01:16.8]} 30... axb5 {[%clk 0:01:48]} 31. Bxb5 {[%clk 0:01:15.4]} 31...
Nb6 {[%clk 0:01:38.4]} 32. a4 {[%clk 0:01:12]} 32... Nc8 {[%clk 0:00:45.4]} 33.
Nc2 {[%clk 0:01:03.5]} 33... Kf8 {[%clk 0:00:44.5]} 34. Nb4 {[%clk 0:00:59.1]}
34... Ke7 {[%clk 0:00:43.8]} 35. Kf2 {[%clk 0:00:50.5]} 35... Kd6 {[%clk
0:00:42.7]} 36. g3 {[%clk 0:00:47.8]} 36... Na7 {[%clk 0:00:40.4]} 37. Be8
{[%clk 0:00:44.6]} 37... f6 {[%clk 0:00:39.2]} 38. Ke3 {[%clk 0:00:43]} 38... g5
{[%clk 0:00:28.3]} 39. h4 {[%clk 0:00:41.1]} 39... Ke7 {[%clk 0:00:20.9]} 40.
Bb5 {[%clk 0:00:35.1]} 40... Kd6 {[%clk 0:00:20.3]} 41. hxg5 {[%clk 0:00:27.4]}
41... hxg5 {[%clk 0:00:19.1]} 42. Be8 {[%clk 0:00:23.3]} 42... Nc6 {[%clk
0:00:16.8]} 43. Bxc6 {[%clk 0:00:19.3]} 43... Bxc6 {[%clk 0:00:16.7]} 44. a5
{[%clk 0:00:18.6]} 44... Ba8 {[%clk 0:00:14.4]} 45. Kd3 {[%clk 0:00:17.5]} 45...
f5 {[%clk 0:00:13.1]} 46. Ke3 {[%clk 0:00:16.2]} 46... e5 {[%clk 0:00:10.9]} 47.
dxe5+ {[%clk 0:00:14.9]} 47... Kxe5 {[%clk 0:00:10.8]} 48. a6 {[%clk 0:00:12]}
48... f4+ {[%clk 0:00:10.7]} 49. gxf4+ {[%clk 0:00:11]} 49... gxf4+ {[%clk
0:00:10.6]} 50. Kf2 {[%clk 0:00:10.1]} 50... Ke4 {[%clk 0:00:09.9]} 51. a7
{[%clk 0:00:08.2]} 51... Kd4 {[%clk 0:00:08]} 52. Na6 {[%clk 0:00:06.9]} 52...
Kc4 {[%clk 0:00:05.2]} 53. Nc7 {[%clk 0:00:06.2]} 53... Be4 {[%clk 0:00:04.3]}
54. a8=Q {[%clk 0:00:03]} 54... Bxa8 {[%clk 0:00:03.7]} 55. Nxa8 {[%clk
0:00:02.9]} 55... Kd5 {[%clk 0:00:03.3]} 56. Nc7+ {[%clk 0:00:02.6]} 56... Ke5
{[%clk 0:00:03.2]} 57. Ne8 {[%clk 0:00:01.8]} 57... Kf5 {[%clk 0:00:03.1]} 58.
Ng7+ {[%clk 0:00:01.2]} 58... Kg5 {[%clk 0:00:03]} 59. Ne6+ {[%clk 0:00:00.4]}
59... Kf5 {[%clk 0:00:02.9]} 0-1

[Event "Live Chess"]
[Site "Chess.com"]
[Date "2024.06.02"]
[Round "-"]
[White "seasidecastle27"]
[Black "Inglaterra"]
[Result "1/2-1/2"]
[WhiteElo "1953"]
[BlackElo "2059"]
[TimeControl "300"]
[EndTime "7:09:58 PDT"]
[Termination "Game drawn by repetition"]

1. d4 {[%clk 0:04:57.3]} 1... d5 {[%clk 0:04:58.4]} 2. Nf3 {[%clk 0:04:56.5]}
2... e6 {[%clk 0:04:56.5]} 3. Bf4 {[%clk 0:04:55.4]} 3... Nf6 {[%clk 0:04:55.8]}
4. e3 {[%clk 0:04:54.4]} 4... Bd6 {[%clk 0:04:55.3]} 5. Bg3 {[%clk 0:04:52.9]}
5... O-O {[%clk 0:04:54.4]} 6. Nbd2 {[%clk 0:04:51.3]} 6... b6 {[%clk
0:04:53.2]} 7. Bd3 {[%clk 0:04:50.3]} 7... Bb7 {[%clk 0:04:52.7]} 8. Qe2 {[%clk
0:04:49.2]} 8... Ne4 {[%clk 0:04:49.4]} 9. Ne5 {[%clk 0:04:44.8]} 9... Nd7
{[%clk 0:04:46.5]} 10. f4 {[%clk 0:04:31.3]} 10... f6 {[%clk 0:04:40.1]} 11.
Nxd7 {[%clk 0:04:22.2]} 11... Qxd7 {[%clk 0:04:27.9]} 12. Nxe4 {[%clk
0:04:20.4]} 12... dxe4 {[%clk 0:04:26.5]} 13. Bc4 {[%clk 0:04:18.9]} 13... Kh8
{[%clk 0:04:22.1]} 14. O-O {[%clk 0:04:12.2]} 14... c5 {[%clk 0:04:13.8]} 15.
Rad1 {[%clk 0:04:03.2]} 15... Qe7 {[%clk 0:04:07.7]} 16. d5 {[%clk 0:03:42.7]}
16... e5 {[%clk 0:03:49.2]} 17. fxe5 {[%clk 0:03:40.1]} 17... Bxe5 {[%clk
0:03:41.1]} 18. Bxe5 {[%clk 0:03:34.4]} 18... Qxe5 {[%clk 0:03:36.7]} 19. c3
{[%clk 0:03:24.5]} 19... Rad8 {[%clk 0:03:10.7]} 20. Qg4 {[%clk 0:03:10.5]}
20... Bxd5 {[%clk 0:02:59]} 21. Rf5 {[%clk 0:03:07.5]} 21... Be6 {[%clk
0:02:50.3]} 22. Rxd8 {[%clk 0:02:59.5]} 22... Rxd8 {[%clk 0:02:46.4]} 23. Rxe5
{[%clk 0:02:55.2]} 23... Bxg4 {[%clk 0:02:43.5]} 24. Rxe4 {[%clk 0:02:50.9]}
24... Bf5 {[%clk 0:02:32.4]} 25. Re7 {[%clk 0:02:48.2]} 25... h6 {[%clk
0:02:27.9]} 26. Rxa7 {[%clk 0:02:43.1]} 26... Rd1+ {[%clk 0:02:23.6]} 27. Kf2
{[%clk 0:02:41.6]} 27... Rd2+ {[%clk 0:02:22.1]} 28. Kf3 {[%clk 0:02:39.9]}
28... Rxb2 {[%clk 0:02:21.1]} 29. h4 {[%clk 0:02:29.3]} 29... h5 {[%clk
0:02:15.1]} 30. Ra8+ {[%clk 0:02:15.9]} 30... Kh7 {[%clk 0:02:13]} 31. Bg8+
{[%clk 0:02:13.9]} 31... Kg6 {[%clk 0:02:07.4]} 32. Bd5 {[%clk 0:02:06.7]} 32...
b5 {[%clk 0:01:53.6]} 33. Bc6 {[%clk 0:01:57.9]} 33... b4 {[%clk 0:01:41.3]} 34.
Be8+ {[%clk 0:01:53.8]} 34... Kh6 {[%clk 0:01:33.9]} 35. cxb4 {[%clk 0:01:51.8]}
35... cxb4 {[%clk 0:01:27]} 36. Bf7 {[%clk 0:01:49.5]} 36... Bg4+ {[%clk
0:01:23.3]} 37. Kg3 {[%clk 0:01:45.1]} 37... Kh7 {[%clk 0:01:21.8]} 38. Bg8+
{[%clk 0:01:34.1]} 38... Kg6 {[%clk 0:01:20.3]} 39. Bd5 {[%clk 0:01:31.2]} 39...
Re2 {[%clk 0:01:15.6]} 40. e4 {[%clk 0:01:27.8]} 40... Re3+ {[%clk 0:01:10.6]}
41. Kf4 {[%clk 0:01:23.7]} 41... Re2 {[%clk 0:01:07.9]} 42. Kg3 {[%clk
0:01:21.4]} 42... Re3+ {[%clk 0:01:06.8]} 43. Kf4 {[%clk 0:01:19.8]} 43... Re2
{[%clk 0:01:01.4]} 44. Kg3 {[%clk 0:01:18.2]} 1/2-1/2